[Event "1000GM 0004 IM Norm 2022"]
[Site "Saint Louis"]
[Date "2022.09.25"]
[Round "9.1"]
[White "Krishnan, Varun"]
[Black "Denby, Caleb"]
[Result "0-1"]
[ECO "A70"]
[WhiteElo "2306"]
[BlackElo "2201"]
[Annotator "TA"]
[PlyCount "100"]
[EventDate "2022.09.21"]
[EventType "tourn"]
[EventCountry "USA"]
[SourceTitle "playchess.com"]
[Source "ChessBase"]
[SourceQuality "1"]
[TimeControl "5400+30"]

{[%evp 16,100,54,0,63,0,0,0,0,0,0,0,66,21,15,-7,-10,-9,-8,-20,-16,-62,-12,-22,-24,-22,-13,-11,0,0,0,-6,-6,-7,-5,-6,-8,-5,-4,-4,-4,-10,-12,-10,0,0,13,0,0,0,0,0,0,0,0,0,0,0,0,-415,-408,-397,-386,-296,0,-7,-8,-17,0,0,0,-428,-399,-12815,-12820,-12799,-12799,-6398,-5593,-5114,-3493,-29991,-29992,-29994,-29995,-29996,-29984]} 1. d4 {[%emt 0:00:10]} Nf6 {[%emt 0:00:11]} 2. c4 {[%emt 0:00:03]} c5 {[%emt 0:00:20]} 3. d5 {[%emt 0:00:05]} e6 {[%emt 0:00:04]} 4. Nc3 {[%emt 0:00:10]} exd5 {[%emt 0:00:04]} 5. cxd5 {[%emt 0:00:03]} d6 {[%emt 0:00:04]} 6. Nf3 {[%emt 0:00:28]} g6 {[%emt 0:00:04]} 7. h3 {[%emt 0:00:06]} Bg7 {[%emt 0:00:07]} 8. e4 {[%emt 0:00:05]} O-O {[%emt 0:00:38]} 9. Be3 {[%emt 0:00:04]} ({White should play} 9. Bd3 $14) 9... b5 {[%emt 0:04:29] A70: Modern Benoni: 6 e4 g6 7 Nf3.} (9... Re8 $11) 10. Bxb5 {[%emt 0:00:36]} ({Better is} 10. e5 $1 $14 Nfd7 11. exd6) 10... Nxe4 $1 $11 {[%emt 0:00:58]} 11. Nxe4 {[%emt 0:06:37]} Qa5+ {[%emt 0:00:28] The position is equal.} 12. Nfd2 {[%emt 0:04:16]} Qxb5 {[%emt 0:00:20]} 13. Nxd6 {[%emt 0:00:11] Pair of Knights!} Qa6 {[%emt 0:00:04] [#]} ({Black should try} 13... Qxb2 $11 14. Rc1 Ba6) 14. Nxc8 $146 {[%emt 0:03:24]} (14. Bxc5 Nd7 15. Ba3 (15. Nxc8 Rfxc8 16. Be3 Ne5 $17) 15... Ne5 $15) (14. N2c4 $5 {[%cal Re1g1]}) ({Predecessor:} 14. N2c4 Nd7 15. O-O Nb6 16. Nxb6 Qxb6 17. Nxc8 Raxc8 {½-½ (17) Matijevic,H (2249)-Damjanovic,M (2307) Croatia 2009}) 14... Rxc8 {[%emt 0:00:32]} 15. Qc2 {[%emt 0:03:03]} Nd7 {[%emt 0:01:30] And now ...Ne5 would win.} 16. Nc4 {[%emt 0:05:16]} Nb6 {[%emt 0:19:39]} 17. Rc1 {[%emt 0:10:38]} Nxd5 {[%emt 0:03:24]} 18. a3 {[%emt 0:03:02] [#] Inhibits Nb4.} (18. O-O $11 {is more appropriate.}) 18... Ne7 {[%emt 0:07:13] Black is more active.} (18... Bc3+ $1 $15 19. bxc3 Qxc4) 19. O-O {[%emt 0:02:05]} Nf5 {[%emt 0:00:44]} 20. Rfe1 {[%emt 0:00:40]} h5 {[%emt 0:04:01]} 21. Rcd1 {[%emt 0:05:08]} Qc6 {[%emt 0:01:22]} 22. Bf4 {[%emt 0:03:34]} Bd4 {[%emt 0:07:04]} 23. Be5 {[%emt 0:01:05]} Re8 {[%emt 0:01:56]} 24. Bxd4 {[%emt 0:01:31]} Nxd4 {[%emt 0:00:22]} 25. Qd3 {[%emt 0:01:16]} Rad8 {[%emt 0:01:14]} 26. Kf1 {[%emt 0:02:57]} Ne6 {[%emt 0:16:01][%cal Bd4e6,Be6g5,Bg5e4,Be4g3][%mdl 32]} 27. Ne5 {[%emt 0:12:57]} Qc7 {[%emt 0:01:33]} 28. Qg3 {[%emt 0:01:43]} Rxd1 {[%emt 0:00:58]} 29. Rxd1 {[%emt 0:00:06]} h4 {[%emt 0:00:06]} 30. Qc3 {[%emt 0:01:17] Strongly threatening Nd7.} Ng5 {[%emt 0:06:21]} 31. f4 {[%emt 0:04:42]} Ne4 $36 {[%emt 0:03:30][%mdl 2048] Black fights for an advantage.} 32. Qc4 {[%emt 0:05:51][%csl LRe4,LRg6]} Ng3+ {[%emt 0:01:18]} (32... Rxe5 33. fxe5 Qxe5 34. Kg1 $16) 33. Kg1 {[%emt 0:00:10] Rd7 is the strong threat.} Re7 {[%emt 0:09:09] Prevents Rd7.} 34. Nxg6 {[%emt 0:03:13]} Re4 {[%emt 0:00:17]} (34... Re2 35. Qd5 (35. Nxh4 Re4 $11) 35... Kg7 36. Ne5 $16) 35. Qd5 {[%emt 0:00:30][%cal Od5g5] Black must now prevent Qg5!} Rd4 {[%emt 0:01:16]} 36. Rxd4 {[%emt 0:08:19]} (36. Qa8+ Kg7 37. Rxd4 cxd4 38. Nxh4 (38. Qh8+ $2 Kxg6 39. Qg8+ Kf6 $19) 38... d3 $17) 36... cxd4 {[%emt 0:00:11][%mdl 4096] Endgame KQN-KQN. Really sharp!} 37. Qa8+ $2 {[%emt 0:00:11][%mdl 8192]} (37. Kh2 $11 {and White stays safe.}) 37... Kg7 $19 {[%emt 0:00:10]} 38. Nxh4 {[%emt 0:00:03] [#]} (38. Qh8+ Kxg6 39. Qg8+ Kf6 40. Qg5+ Ke6 41. f5+ Nxf5 $19) 38... Qc1+ $1 {[%emt 0:02:55]} (38... Qxf4 39. Nf3 $11) 39. Kh2 {[%emt 0:00:03]} Nf1+ {[%emt 0:00:33]} ({Weaker is} 39... Qxf4 40. Qf3 Nf1+ 41. Kg1 Qxh4 42. Kxf1 $16 (42. Qxf1 Qe4 $11)) (39... Ne2 $19 {[%csl Ge2][%cal Rc1g1]} 40. Nf3 Qxf4+ 41. Kh1 Qc1+ 42. Kh2 Qc7+ 43. Kh1 Qc1+ 44. Kh2 Qc7+ 45. Kh1 d3) 40. Kg1 {[%emt 0:00:19]} Ne3+ {[%emt 0:00:31]} ({Wrong is} 40... Ng3+ $2 41. Kh2 Ne2 42. Nf3 Qxf4+ 43. Kh1 Qc1+ 44. Kh2 Qc7+ 45. Kh1 $19) 41. Kh2 {[%emt 0:00:28]} Nf1+ {[%emt 0:06:24][%mdl 1088] Discovered Attack. Black has compensation.} 42. Kg1 {[%emt 0:00:04]} Ng3+ $2 {[%emt 0:00:06][%mdl 8192]} (42... Ne3+ $11 43. Kh2 d3) 43. Kh2 {[%emt 0:00:05]} Ne2 {[%emt 0:00:18][%csl Ge2][%cal Rc1g1]} 44. Nf5+ $2 {[%emt 0:02:08]} (44. Nf3 Qxf4+ 45. Kh1) 44... Kh7 {[%emt 0:00:13][%csl Ge2][%cal Rc1g1]} 45. h4 {[%emt 0:04:32]} Qxf4+ {[%emt 0:00:29]} 46. g3 {[%emt 0:00:11]} Qxf5 {[%emt 0:00:16]} 47. Kg2 {[%emt 0:00:04]} d3 {[%emt 0:00:21] ( -> ...d2)} 48. Qd8 {[%emt 0:00:15]} Qe4+ {[%emt 0:00:21] Black mates.} 49. Kh2 {[%emt 0:00:41]} Qe3 {[%emt 0:00:08]} 50. Qc7 {[%emt 0:00:26]} Qxg3+ {[%emt 0:00:12] Weighted Error Value: White=0.40/Black=0.22 (precise)} 0-1

[Event "1000GM 0004 IM Norm 2022"]
[Site "Saint Louis"]
[Date "2022.09.25"]
[Round "9.2"]
[White "Cervantes Landeiro, Thalia"]
[Black "Eckert, Doug"]
[Result "1-0"]
[ECO "C90"]
[WhiteElo "2280"]
[BlackElo "2165"]
[Annotator "RC"]
[PlyCount "103"]
[EventDate "2022.09.21"]
[EventType "tourn"]
[EventCountry "USA"]
[SourceTitle "playchess.com"]
[Source "ChessBase"]
[SourceQuality "1"]
[TimeControl "5400+30"]

1. e4 {[%emt 0:00:00]} e5 {[%emt 0:00:07]} 2. Nf3 {[%emt 0:00:10]} Nc6 {[%emt 0:00:06]} 3. Bb5 {[%emt 0:00:06]} a6 {[%emt 0:00:06]} 4. Ba4 {[%emt 0:00:04]} Nf6 {[%emt 0:00:07]} 5. d3 {[%emt 0:00:12]} b5 {[%emt 0:00:33]} 6. Bb3 {[%emt 0:00:12]} Be7 {[%emt 0:00:23]} 7. O-O {[%emt 0:00:50]} d6 {[%emt 0:00:13]} 8. c3 {[%emt 0:00:24]} O-O {[%emt 0:00:20]} 9. Nbd2 {[%emt 0:01:08]} Na5 {[%emt 0:00:08]} 10. Bc2 {[%emt 0:00:15]} c5 {[%emt 0:00:06]} 11. Re1 {[%emt 0:00:49]} Nc6 {[%emt 0:00:10]} 12. Nf1 {[%emt 0:00:26]} Re8 {[%emt 0:00:16]} 13. Bg5 {[%emt 0:01:25]} Be6 {[%emt 0:02:44]} 14. Ne3 {[%emt 0:03:48]} Rc8 {[%emt 0:12:58]} 15. Bb3 {[%emt 0:01:25]} Qd7 {[%emt 0:10:09]} 16. a4 {[%emt 0:03:39]} h6 {[%emt 0:09:23]} 17. Bh4 {[%emt 0:07:34]} Bd8 {[%emt 0:03:02]} 18. axb5 {[%emt 0:00:42]} axb5 {[%emt 0:00:19]} 19. Bxe6 {[%emt 0:11:45]} Qxe6 {[%emt 0:01:31]} 20. Bxf6 {[%emt 0:01:06]} Bxf6 {[%emt 0:00:32]} 21. Ra6 {[%emt 0:00:53]} Bd8 {[%emt 0:02:52]} 22. Qa1 {[%emt 0:01:23]} g6 {[%emt 0:05:03]} 23. Qa2 {[%emt 0:01:22]} Qxa2 {[%emt 0:02:45]} 24. Rxa2 {[%emt 0:00:10]} Re7 {[%emt 0:02:42]} 25. Rea1 {[%emt 0:00:45]} Rb7 {[%emt 0:02:09]} 26. h4 {[%emt 0:02:24]} h5 {[%emt 0:00:35]} 27. Nd5 {[%emt 0:02:00]} Kf8 {[%emt 0:02:38]} 28. g3 {[%emt 0:00:45]} Ke8 {[%emt 0:01:25]} 29. Nd2 {[%emt 0:01:25]} Kd7 {[%emt 0:02:15]} 30. Nf1 {[%emt 0:00:36]} Rbb8 {[%emt 0:03:04]} 31. Nfe3 {[%emt 0:01:07]} Rb7 {[%emt 0:00:16]} 32. Kg2 {[%emt 0:00:58]} Ke8 {[%emt 0:01:02]} 33. Kh3 {[%emt 0:00:59]} Rbb8 {[%emt 0:05:04]} 34. Ra6 {[%emt 0:01:13]} Kd7 {[%emt 0:00:59]} 35. f3 {[%emt 0:01:23]} Rb7 {[%emt 0:06:46]} 36. R6a2 {[%emt 0:10:37]} Be7 {[%emt 0:00:57]} 37. Ra6 {[%emt 0:03:43]} Rcb8 {[%emt 0:03:25]} 38. g4 {[%emt 0:05:31]} hxg4+ {[%emt 0:02:45]} 39. fxg4 {[%emt 0:00:26]} f6 {[%emt 0:05:13]} 40. Rf1 {[%emt 0:01:41]} Rf8 {[%emt 0:00:26]} 41. h5 {[%emt 0:02:24]} gxh5 {[%emt 0:00:42]} 42. gxh5 {[%emt 0:00:30]} Nb8 {[%emt 0:02:08]} 43. Ra8 {[%emt 0:02:30]} Bd8 {[%emt 0:02:39]} 44. Nf5 {[%emt 0:00:53]} Ke6 {[%emt 0:05:26]} 45. Rg1 {[%emt 0:00:43]} Rh8 {[%emt 0:00:47]} 46. h6 {[%emt 0:00:41]} b4 {[%emt 0:01:36]} 47. Kh4 {[%emt 0:02:42]} bxc3 {[%emt 0:00:03]} 48. bxc3 {[%emt 0:00:08]} Rb2 {[%emt 0:00:29]} 49. Rg7 {[%emt 0:01:40]} Re8 {[%emt 0:03:04]} 50. Rxb8 {[%emt 0:01:59]} Rxb8 {[%emt 0:00:07]} 51. Ra7 {[%emt 0:00:05]} Rg8 {[%emt 0:00:25]} 52. h7 {[%emt 0:00:16]} 1-0